[Event "World Junior U20 Open 2018"]
[Site "Gebze"]
[Date "2018.09.14"]
[Round "10.59"]
[White "Kilic, Efe Mert"]
[Black "Liyanage, Ranindu Dilshan"]
[Result "0-1"]
[ECO "B90"]
[WhiteElo "2269"]
[BlackElo "1989"]
[Annotator "NA"]
[PlyCount "76"]
[EventDate "2018.09.05"]
[EventType "swiss"]
[EventCountry "TUR"]
[SourceTitle "playchess.com"]
[Source "ChessBase"]
[SourceQuality "1"]
[TimeControl "40/5400+30:1800+30"]

1. e4 c5 2. Nf3 d6 3. d4 cxd4 4. Nxd4 Nf6 5. Nc3 a6 6. Be3 e5 7. Nf3 Nc6 8. Bc4 Na5 9. Be2 Be6 {[%emt 0:26:30]} 10. Nd5 {[%emt 0:16:00]} Bxd5 {[%emt 0:00:30]} 11. exd5 {[%emt 0:00:30]} Qc7 {[%emt 0:05:30]} 12. b3 {[%emt 0:04:30]} e4 {[%emt 0:08:30]} 13. Ng5 {[%emt 0:02:30]} h6 {[%emt 0:00:30]} 14. Nh3 {[%emt 0:00:30]} Nxd5 {[%emt 0:01:30]} 15. Qxd5 {[%emt 0:02:30]} Qc3+ {[%emt 0:00:30]} 16. Bd2 {[%emt 0:00:30]} Qxa1+ {[%emt 0:00:30]} 17. Bd1 {[%emt 0:00:00]} Nc6 {[%emt 0:00:30]} 18. c3 {[%emt 0:00:00]} Qxa2 {[%emt 0:12:30]} 19. O-O {[%emt 0:02:30]} Be7 {[%emt 0:00:30]} 20. Nf4 {[%emt 0:00:30]} O-O {[%emt 0:05:30]} 21. Nh5 {[%emt 0:01:30]} Rfe8 {[%emt 0:06:30]} 22. Bf4 {[%emt 0:12:30]} Qa5 {[%emt 0:03:30]} 23. Qxe4 {[%emt 0:01:30]} Bg5 {[%emt 0:01:30]} 24. Qd3 {[%emt 0:00:30]} Bxf4 {[%emt 0:02:30]} 25. Nxf4 {[%emt 0:00:30]} Qe5 {[%emt 0:00:30]} 26. g3 {[%emt 0:00:30]} Qe4 {[%emt 0:05:30]} 27. Qd2 {[%emt 0:03:30]} Ne5 {[%emt 0:02:13]} 28. f3 {[%emt 0:00:30]} Qc6 {[%emt 0:00:05]} 29. Nd5 {[%emt 0:00:30]} Ng6 {[%emt 0:01:30]} 30. Bc2 {[%emt 0:00:30]} Qc5+ {[%emt 0:02:23]} 31. Kh1 {[%emt 0:00:30]} Re5 {[%emt 0:01:31]} 32. c4 {[%emt 0:00:30]} Rae8 {[%emt 0:01:18]} 33. h4 {[%emt 0:01:30]} Re2 {[%emt 0:01:59]} 34. Qc3 {[%emt 0:00:30]} Qc8 {[%emt 0:00:24]} 35. g4 {[%emt 0:00:30]} Qd8 {[%emt 0:00:47]} 36. g5 {[%emt 0:00:00]} Qc8 {[%emt 0:00:00]} 37. f4 {[%emt 0:00:00]} Qg4 {[%emt 0:01:05]} 38. Bf5 {[%emt 0:00:00]} Qg2# {[%emt 0:00:00]} 0-1

[Event "World Junior U20 Open 2018"]
[Site "Gebze"]
[Date "2018.09.14"]
[Round "10.60"]
[White "Ozsakallioglu, Okan"]
[Black "Dedebas, Emre Emin"]
[Result "0-1"]
[ECO "E06"]
[WhiteElo "1955"]
[BlackElo "2334"]
[Annotator "ChessBase"]
[PlyCount "68"]
[EventDate "2018.09.05"]
[EventType "swiss"]
[EventCountry "TUR"]
[SourceTitle "playchess.com"]
[Source "ChessBase"]
[SourceQuality "1"]
[TimeControl "40/5400+30:1800+30"]

1. d4 Nf6 2. Nf3 e6 3. g3 d5 4. Bg2 Be7 5. O-O O-O 6. c4 c6 7. Nc3 b6 8. Qc2 Ba6 9. Ne5 Nfd7 10. Nxd7 Nxd7 11. cxd5 cxd5 12. Bf4 Nf6 13. Qa4 Bb7 14. Rfe1 a6 15. Qb3 {[%emt 0:16:30]} Rc8 {[%emt 0:26:30]} 16. Rac1 {[%emt 0:00:30]} b5 {[%emt 0:00:30]} 17. Na4 {[%emt 0:00:30]} Qa5 {[%emt 0:07:30]} 18. Nc3 {[%emt 0:04:30]} Rc4 {[%emt 0:07:30]} 19. Rcd1 {[%emt 0:09:30]} Rfc8 {[%emt 0:02:30]} 20. e4 {[%emt 0:12:30]} Bb4 {[%emt 0:18:30]} 21. Bd2 {[%emt 0:00:30]} Nxe4 {[%emt 0:05:30]} 22. Bxe4 {[%emt 0:07:30]} dxe4 {[%emt 0:01:30]} 23. a3 {[%emt 0:00:00]} Bxc3 {[%emt 0:00:00]} 24. bxc3 {[%emt 0:00:00]} Qd8 {[%emt 0:02:00]} 25. Re3 {[%emt 0:00:30]} Qd5 {[%emt 0:00:30]} 26. Rde1 {[%emt 0:02:30]} f5 {[%emt 0:02:30]} 27. f3 {[%emt 0:00:30]} exf3 {[%emt 0:02:30]} 28. Kf2 {[%emt 0:00:00]} Re8 {[%emt 0:02:30]} 29. Re5 {[%emt 0:01:00]} Qd7 {[%emt 0:00:00]} 30. Qc2 {[%emt 0:01:30]} Qxd4+ {[%emt 0:02:00]} 31. cxd4 {[%emt 0:00:00]} Rxc2 {[%emt 0:00:30]} 32. Ke3 {[%emt 0:00:00]} Bd5 {[%emt 0:00:00]} 33. h4 {[%emt 0:00:30]} Rec8 {[%emt 0:02:00]} 34. Bb4 {[%emt 0:00:00]} R8c4 {[%emt 0:00:30]} 0-1

[Event "World Junior U20 Open 2018"]
[Site "Gebze"]
[Date "2018.09.14"]
[Round "10.61"]
[White "Karaoglan, Doruk"]
[Black "Urazayev, Arystanbek"]
[Result "0-1"]
[ECO "C50"]
[WhiteElo "2196"]
[BlackElo "2333"]
[Annotator "ChessBase"]
[PlyCount "56"]
[EventDate "2018.09.05"]
[EventType "swiss"]
[EventCountry "TUR"]
[SourceTitle "playchess.com"]
[Source "ChessBase"]
[SourceQuality "1"]
[TimeControl "40/5400+30:1800+30"]

1. e4 e5 2. Nf3 Nc6 3. Bc4 Bc5 4. O-O Nf6 5. d4 Bxd4 6. Nxd4 Nxd4 7. f4 d6 8. fxe5 dxe5 9. Bg5 Qe7 10. c3 Ne6 11. Bxf6 gxf6 12. Kh1 Rg8 {[%emt 0:06:00]} 13. Qh5 {[%emt 0:36:30]} Bd7 {[%emt 0:05:30]} 14. Qh4 {[%emt 0:40:30]} Nf4 {[%emt 0:06:30]} 15. Rf2 {[%emt 0:12:17]} O-O-O {[%emt 0:02:30]} 16. Na3 {[%emt 0:02:27]} h5 {[%emt 0:03:30]} 17. h3 {[%emt 0:00:54]} Bc6 {[%emt 0:03:30]} 18. Re1 {[%emt 0:00:42]} Rg5 {[%emt 0:01:30]} 19. Rc2 {[%emt 0:01:11]} f5 {[%emt 0:05:30]} 20. Qf2 {[%emt 0:01:07]} b6 {[%emt 0:05:30]} 21. Bd5 {[%emt 0:01:01]} Nxd5 {[%emt 0:04:30]} 22. exd5 {[%emt 0:00:12]} Bxd5 {[%emt 0:00:00]} 23. Qf1 {[%emt 0:00:17]} Rdg8 {[%emt 0:02:00]} 24. Ree2 {[%emt 0:01:15]} f4 {[%emt 0:00:30]} 25. c4 {[%emt 0:00:13]} Bb7 {[%emt 0:02:30]} 26. Rf2 {[%emt 0:00:50]} Rg3 {[%emt 0:02:30]} 27. Kh2 {[%emt 0:00:22]} Qh4 {[%emt 0:00:00]} 28. c5 {[%emt 0:00:57]} Rxh3+ {[%emt 0:01:00]} 0-1

[Event "World Junior U20 Open 2018"]
[Site "Gebze"]
[Date "2018.09.14"]
[Round "10.62"]
[White "Tarlabasi, Emirhan"]
[Black "Zlatin, Alexander"]
[Result "1-0"]
[ECO "E11"]
[WhiteElo "2193"]
[BlackElo "2312"]
[Annotator "NA"]
[PlyCount "91"]
[EventDate "2018.09.05"]
[EventType "swiss"]
[EventCountry "TUR"]
[SourceTitle "playchess.com"]
[Source "ChessBase"]
[SourceQuality "1"]
[TimeControl "40/5400+30:1800+30"]

1. d4 {[%emt 0:00:30]} Nf6 {[%emt 0:00:30]} 2. c4 {[%emt 0:00:30]} e6 {[%emt 0:00:30]} 3. Nf3 {[%emt 0:00:30]} Bb4+ {[%emt 0:00:30]} 4. Nbd2 {[%emt 0:00:00]} a5 {[%emt 0:00:00] LiveBook: 108 Partien} 5. a3 {[%emt 0:01:00] E11: Bogo-Indian} Bxd2+ {[%emt 0:01:30]} (5... Be7 6. e4 d5 7. Qc2 c5 8. cxd5 exd5 9. Bb5+ Bd7 10. Bxd7+ Qxd7 11. O-O O-O 12. e5 Nh5 {½-½ (32) Ivanchuk,V (2727)-Fedorchuk,S (2640) Mali Losinj 2017}) 6. Qxd2 {[%emt 0:01:30]} d6 {[%emt 0:06:00]} 7. e3 {[%emt 0:00:30]} b6 {[%emt 0:00:30]} 8. Be2 $146 {[%emt 0:00:30]} ({Predecessor:} 8. b3 Qe7 9. Bb2 Nbd7 10. Be2 O-O 11. O-O Bb7 12. Qc2 e5 13. Rfe1 Be4 14. Qc3 Rfe8 15. Nd2 Bf5 16. Bf3 e4 17. Be2 Bg4 18. Bf1 Nf8 19. h3 Bd7 {½-½ (50) Hofstetter,H (2176)-Zill,C GER email 2011}) 8... a4 {[%emt 0:00:30]} 9. O-O {[%emt 0:02:30]} Bb7 {[%emt 0:00:30]} 10. Qc2 {[%emt 0:03:30]} O-O {[%emt 0:01:30]} 11. b4 {[%emt 0:02:30]} axb3 {[%emt 0:00:30]} 12. Qxb3 {[%emt 0:00:30]} Qe7 {[%emt 0:00:30]} 13. Bb2 {[%emt 0:00:30]} Ne4 {[%emt 0:21:30]} 14. Qc2 {[%emt 0:21:00]} f5 {[%emt 0:00:30]} 15. Ne1 {[%emt 0:04:30]} Nd7 {[%emt 0:10:30]} 16. f3 {[%emt 0:04:30]} Nef6 {[%emt 0:00:30]} 17. a4 {[%emt 0:04:30]} Nh5 {[%emt 0:07:30]} 18. Bc3 {[%emt 0:04:30]} f4 {[%emt 0:02:30]} 19. e4 {[%emt 0:02:30]} Qh4 {[%emt 0:08:30]} 20. Nd3 {[%emt 0:03:30]} Rf6 {[%emt 0:01:30]} 21. Nf2 {[%emt 0:05:30]} Rg6 {[%emt 0:03:30]} 22. Rfb1 {[%emt 0:04:30]} d5 {[%emt 0:08:30]} 23. cxd5 {[%emt 0:04:30]} exd5 {[%emt 0:00:30]} 24. e5 {[%emt 0:01:30]} Nf8 {[%emt 0:03:30]} 25. Bd3 {[%emt 0:04:30]} Rc6 {[%emt 0:04:30]} 26. Qb3 {[%emt 0:06:30]} Qd8 {[%emt 0:00:00]} 27. Bd2 {[%emt 0:06:30]} Ne6 {[%emt 0:01:00]} 28. a5 {[%emt 0:08:46]} Nxd4 {[%emt 0:02:30]} 29. Qa4 {[%emt 0:02:17]} Ne6 {[%emt 0:00:30]} 30. a6 {[%emt 0:01:21]} Nc5 {[%emt 0:02:30]} 31. Qc2 {[%emt 0:05:25]} Nxa6 {[%emt 0:03:30]} 32. Bxh7+ {[%emt 0:02:43]} Kh8 {[%emt 0:00:30]} 33. Qf5 {[%emt 0:01:48]} Qe8 {[%emt 0:05:41]} 34. e6 {[%emt 0:00:59]} Nf6 {[%emt 0:00:03]} 35. Bg6 {[%emt 0:00:50]} Qxe6 {[%emt 0:00:30]} 36. Qxf4 {[%emt 0:00:01]} Rc4 {[%emt 0:03:47]} 37. Qg5 {[%emt 0:00:47]} Nc5 {[%emt 0:02:23]} 38. Rxa8+ {[%emt 0:01:45]} Bxa8 {[%emt 0:00:30]} 39. Re1 {[%emt 0:00:30]} Nce4 {[%emt 0:06:22]} 40. fxe4 {[%emt 0:00:47]} dxe4 {[%emt 0:00:00]} 41. Bf5 {[%emt 0:06:01]} Qd5 {[%emt 0:03:14]} 42. Be3 {[%emt 0:02:30]} c5 {[%emt 0:00:00]} 43. Ng4 {[%emt 0:01:30]} Nh7 {[%emt 0:03:00]} 44. Qh5 {[%emt 0:00:30]} Qg8 {[%emt 0:00:30]} 45. Rd1 {[%emt 0:00:30]} Rd4 {[%emt 0:01:30]} 46. Bxd4 {[%emt 0:00:30]} 1-0

[Event "World Junior U20 Open 2018"]
[Site "Gebze"]
[Date "2018.09.14"]
[Round "10.63"]
[White "Eren, Ataberk"]
[Black "Jogstad, Martin"]
[Result "1-0"]
[ECO "D19"]
[WhiteElo "2180"]
[BlackElo "2305"]
[Annotator "NA"]
[PlyCount "104"]
[EventDate "2018.09.05"]
[EventType "swiss"]
[EventCountry "TUR"]
[SourceTitle "playchess.com"]
[Source "ChessBase"]
[SourceQuality "1"]
[TimeControl "40/5400+30:1800+30"]

1. d4 d5 2. c4 c6 3. Nf3 Nf6 4. Nc3 dxc4 5. a4 Bf5 6. e3 e6 7. Bxc4 Bb4 8. O-O Nbd7 9. Qe2 Bg6 10. e4 O-O 11. Bd3 Bh5 12. e5 Nd5 13. Nxd5 cxd5 14. Qe3 Re8 15. Ng5 Bg6 16. f4 Bxd3 17. Qxd3 f5 18. Be3 h6 19. Nf3 Rc8 20. Kh1 Qa5 21. Rg1 Qa6 22. Qd1 {[%emt 0:06:00]} Rc7 {[%emt 1:08:00]} 23. g4 {[%emt 0:00:30]} fxg4 {[%emt 0:00:30]} 24. Rxg4 {[%emt 0:00:30]} Nf8 {[%emt 0:05:30]} 25. Rg2 {[%emt 0:00:30]} Rec8 {[%emt 0:06:30]} 26. f5 {[%emt 0:10:30]} exf5 {[%emt 0:00:30]} 27. Nh4 {[%emt 0:00:00]} Qe6 {[%emt 0:07:48]} 28. Qh5 {[%emt 0:02:00]} f4 {[%emt 0:06:07]} 29. Bxf4 {[%emt 0:00:30]} Qf7 {[%emt 0:01:22]} 30. Rxg7+ {[%emt 0:05:30]} Qxg7 {[%emt 0:00:21]} 31. Rg1 {[%emt 0:00:30]} Qxg1+ {[%emt 0:00:51]} 32. Kxg1 {[%emt 0:00:00]} Rg7+ {[%emt 0:02:28]} 33. Kh1 {[%emt 0:08:00]} Rc6 {[%emt 0:04:33]} 34. Nf5 {[%emt 0:01:30]} Ne6 {[%emt 0:01:29]} 35. Bxh6 {[%emt 0:06:30]} Bf8 {[%emt 0:00:21]} 36. Nxg7 {[%emt 0:00:30]} Bxg7 {[%emt 0:00:16]} 37. Qe8+ {[%emt 0:00:30]} Kh7 {[%emt 0:00:24]} 38. Bxg7 {[%emt 0:01:30]} Nxg7 {[%emt 0:00:17]} 39. Qd7 {[%emt 0:00:30]} Rc1+ {[%emt 0:01:35]} 40. Kg2 {[%emt 0:00:00]} Rc2+ {[%emt 0:00:00]} 41. Kh3 {[%emt 0:00:00]} Rxb2 {[%emt 0:01:38]} 42. Qxd5 {[%emt 0:03:30]} Rb6 {[%emt 0:01:30]} 43. Qe4+ {[%emt 0:00:30]} Rg6 {[%emt 0:03:30]} 44. d5 {[%emt 0:01:30]} Nh5 {[%emt 0:00:30]} 45. d6 {[%emt 0:00:30]} Ng7 {[%emt 0:00:00]} 46. d7 {[%emt 0:02:30]} Ne6 {[%emt 0:00:00]} 47. Qf5 {[%emt 0:00:30]} Kg7 {[%emt 0:00:30]} 48. Qxe6 {[%emt 0:00:30]} Rxe6 {[%emt 0:00:30]} 49. d8=Q {[%emt 0:00:00]} Rxe5 {[%emt 0:00:30]} 50. Qc7+ {[%emt 0:00:00]} Kf6 {[%emt 0:00:30]} 51. Qxb7 {[%emt 0:00:30]} a5 {[%emt 0:00:00]} 52. Qb2 {[%emt 0:00:30]} Kf5 {[%emt 0:04:00]} 1-0

[Event "World Junior U20 Open 2018"]
[Site "Gebze"]
[Date "2018.09.14"]
[Round "10.64"]
[White "Ozenir, Ekin Baris"]
[Black "Cirovic, Miroljub"]
[Result "1/2-1/2"]
[ECO "A45"]
[WhiteElo "2303"]
[BlackElo "2181"]
[Annotator "NA"]
[PlyCount "129"]
[EventDate "2018.09.05"]
[EventType "swiss"]
[EventCountry "TUR"]
[SourceTitle "playchess.com"]
[Source "ChessBase"]
[SourceQuality "1"]
[TimeControl "40/5400+30:1800+30"]

1. d4 Nf6 2. Bg5 e6 3. e4 c5 4. d5 d6 {A45: Trompowsky Attack} (4... h6 5. Bxf6 Qxf6 6. Nc3 a6 7. Nf3 e5 8. a4 d6 9. Be2 g6 10. O-O Bg7 11. Nd2 O-O 12. Nc4 {½-½ (38) Kanep,M (2485)-Piorun,K (2657) Tallinn 2016}) 5. Nc3 Be7 {[%emt 0:03:30]} 6. Bb5+ {[%emt 0:07:00]} Bd7 {[%emt 0:00:30]} 7. dxe6 {[%emt 0:00:30]} fxe6 {[%emt 0:01:30]} 8. e5 {[%emt 0:07:30]} dxe5 {[%emt 0:00:30]} 9. Bxf6 {[%emt 0:00:30]} Bxf6 {[%emt 0:00:30]} 10. Qh5+ {[%emt 0:00:30]} g6 {[%emt 0:00:30]} 11. Qg4 {[%emt 0:19:30]} Nc6 {[%emt 0:34:30]} 12. O-O-O {[%emt 0:10:30]} Qc7 $146 {[%emt 0:07:30]} 13. Qc4 {[%emt 0:09:30]} O-O-O {[%emt 0:15:30]} 14. Qxc5 {[%emt 0:03:30]} Kb8 {[%emt 0:04:30]} 15. Nf3 {[%emt 0:08:30]} a6 {[%emt 0:04:30]} 16. Ba4 {[%emt 0:02:30]} Rhf8 {[%emt 0:08:30]} 17. Kb1 {[%emt 0:12:30]} Nd4 {[%emt 0:02:30]} 18. Qxc7+ {[%emt 0:04:30]} Kxc7 {[%emt 0:00:30]} 19. Bxd7 {[%emt 0:03:30]} Rxd7 {[%emt 0:00:00]} 20. Nd2 {[%emt 0:02:30]} b5 {[%emt 0:00:00]} 21. Nce4 {[%emt 0:00:30]} Be7 {[%emt 0:00:30]} 22. c3 {[%emt 0:01:30]} Nc6 {[%emt 0:06:31]} 23. Nf3 {[%emt 0:03:10]} Rf4 {[%emt 0:00:00]} 24. Rxd7+ {[%emt 0:01:21]} Kxd7 {[%emt 0:00:00]} 25. Re1 {[%emt 0:00:50]} h6 {[%emt 0:01:53]} 26. Re2 {[%emt 0:02:22]} g5 {[%emt 0:00:15]} 27. Ne1 {[%emt 0:01:02]} Rh4 {[%emt 0:01:03]} 28. h3 {[%emt 0:02:43]} g4 {[%emt 0:00:10]} 29. hxg4 {[%emt 0:01:02]} Rxg4 {[%emt 0:00:05]} 30. f3 {[%emt 0:00:03]} Rg6 {[%emt 0:01:19]} 31. Nd3 {[%emt 0:00:20]} a5 {[%emt 0:00:22]} 32. Kc2 {[%emt 0:01:09]} h5 {[%emt 0:01:02]} 33. Kd1 {[%emt 0:01:23]} h4 {[%emt 0:00:21]} 34. Ke1 {[%emt 0:00:59]} Rh6 {[%emt 0:00:25]} 35. Nef2 {[%emt 0:00:54]} Rh5 {[%emt 0:03:10]} 36. Ng4 {[%emt 0:02:01]} Kd6 {[%emt 0:00:27]} 37. Ngf2 {[%emt 0:01:22]} b4 {[%emt 0:00:35]} 38. Kf1 {[%emt 0:00:35]} bxc3 {[%emt 0:01:02]} 39. bxc3 {[%emt 0:00:04]} Rh8 {[%emt 0:00:15]} 40. Rb2 {[%emt 0:00:00]} Rb8 {[%emt 0:00:00]} 41. Rxb8 {[%emt 0:12:10]} Nxb8 {[%emt 0:02:05]} 42. Ke2 {[%emt 0:00:30]} Kd5 {[%emt 0:00:30]} 43. Ng4 {[%emt 0:00:30]} Nc6 {[%emt 0:01:30]} 44. Ne3+ {[%emt 0:00:30]} Kd6 {[%emt 0:00:30]} 45. Nc4+ {[%emt 0:01:30]} Kd5 {[%emt 0:00:30]} 46. Nb6+ {[%emt 0:00:30]} Kd6 {[%emt 0:00:00]} 47. Nc4+ {[%emt 0:05:30]} Kd5 {[%emt 0:00:00]} 48. Ne3+ {[%emt 0:00:30]} Kd6 {[%emt 0:00:30]} 49. Nf2 {[%emt 0:00:30]} Kc5 {[%emt 0:04:30] [#]} 50. a4 $16 {[%emt 0:01:30]} Kb6 {[%emt 0:01:30]} 51. Ne4 {[%emt 0:00:30]} Bf8 {[%emt 0:00:30]} 52. Nc4+ {[%emt 0:01:30]} Kc7 {[%emt 0:00:30]} 53. Kd3 {[%emt 0:00:30]} Kd7 {[%emt 0:02:30]} 54. Ned2 {[%emt 0:00:34]} Ne7 {[%emt 0:01:30]} 55. Nxe5+ {[%emt 0:02:09]} Kc7 {[%emt 0:00:30]} 56. Ndc4 {[%emt 0:07:31]} Nd5 {[%emt 0:00:30]} 57. Ne3 {[%emt 0:01:38]} Nf4+ {[%emt 0:00:00]} 58. Ke4 {[%emt 0:01:21]} Nxg2 {[%emt 0:00:00]} 59. N3g4 {[%emt 0:02:23]} Bd6 {[%emt 0:00:30]} 60. Nc4 {[%emt 0:01:00]} Bg3 {[%emt 0:00:30]} 61. Nxa5 {[%emt 0:01:19]} h3 {[%emt 0:00:30]} 62. Nb3 {[%emt 0:00:51]} h2 {[%emt 0:00:30]} 63. Nxh2 {[%emt 0:00:30]} Bxh2 {[%emt 0:00:30]} 64. Nd4 {[%emt 0:00:30]} Nf4 {[%emt 0:00:30]} 65. a5 {[%emt 0:00:00]} 1/2-1/2

[Event "World Junior U20 Open 2018"]
[Site "Gebze"]
[Date "2018.09.14"]
[Round "10.65"]
[White "Taalaibekov, Tagir"]
[Black "Can, Melih Kaan"]
[Result "0-1"]
[ECO "D11"]
[WhiteElo "2291"]
[BlackElo "2195"]
[Annotator "ChessBase"]
[PlyCount "92"]
[EventDate "2018.09.05"]
[EventType "swiss"]
[EventCountry "TUR"]
[SourceTitle "playchess.com"]
[Source "ChessBase"]
[SourceQuality "1"]
[TimeControl "40/5400+30:1800+30"]

1. d4 Nf6 2. Nf3 d5 3. c4 c6 4. e3 a6 5. Nbd2 g6 6. Bd3 Bg7 7. O-O O-O 8. b3 Bf5 9. Be2 a5 10. Bb2 a4 11. Ne5 Nfd7 12. f4 Nxe5 13. fxe5 {[%emt 0:12:30]} f6 {[%emt 0:34:30]} 14. Rxf5 {[%emt 0:16:30]} gxf5 {[%emt 0:00:30]} 15. e6 {[%emt 0:00:30]} Qd6 {[%emt 0:04:30]} 16. Bd3 {[%emt 0:00:30]} Qxe6 {[%emt 0:02:30]} 17. Qf3 {[%emt 0:00:00]} f4 {[%emt 0:07:30]} 18. exf4 {[%emt 0:08:00]} f5 {[%emt 0:05:30]} 19. Qf2 {[%emt 0:00:30]} axb3 {[%emt 0:04:30]} 20. Re1 {[%emt 0:00:30]} Qd6 {[%emt 0:02:30]} 21. a3 {[%emt 0:04:30]} Nd7 {[%emt 0:02:30]} 22. Qh4 {[%emt 0:08:30]} Qf6 {[%emt 0:15:30]} 23. Qxf6 {[%emt 0:14:30]} Rxf6 {[%emt 0:01:30]} 24. cxd5 {[%emt 0:02:30]} cxd5 {[%emt 0:00:44]} 25. Rxe7 {[%emt 0:10:30]} Rf7 {[%emt 0:02:02]} 26. Rxf7 {[%emt 0:03:30]} Kxf7 {[%emt 0:00:30]} 27. Nxb3 {[%emt 0:00:30]} Ke6 {[%emt 0:00:30]} 28. h3 {[%emt 0:00:30]} h5 {[%emt 0:00:30]} 29. g3 {[%emt 0:00:00]} Bf8 {[%emt 0:02:01]} 30. Be2 {[%emt 0:12:53]} Bxa3 {[%emt 0:01:13]} 31. Bc3 {[%emt 0:00:04]} Nf6 {[%emt 0:00:57]} 32. Nd2 {[%emt 0:01:33]} Rc8 {[%emt 0:01:19]} 33. Ba5 {[%emt 0:00:57]} Rc2 {[%emt 0:07:35]} 34. Bd3 {[%emt 0:01:00]} Rc1+ {[%emt 0:00:02]} 35. Kg2 {[%emt 0:00:53]} Ne4 {[%emt 0:02:21]} 36. Nf3 {[%emt 0:00:29]} Bd6 {[%emt 0:00:51]} 37. Be1 {[%emt 0:04:05]} Ra1 {[%emt 0:00:20]} 38. Be2 {[%emt 0:00:39]} Ra2 {[%emt 0:01:06]} 39. Kf1 {[%emt 0:00:10]} Rb2 {[%emt 0:00:16]} 40. Nh4 {[%emt 0:00:00]} Rb1 {[%emt 0:00:00]} 41. Bd3 {[%emt 0:01:47]} Nxg3+ {[%emt 0:03:43]} 42. Kf2 {[%emt 0:01:30]} Ne4+ {[%emt 0:00:00]} 43. Ke2 {[%emt 0:00:30]} Rb2+ {[%emt 0:00:00]} 44. Ke3 {[%emt 0:00:30]} b5 {[%emt 0:01:30]} 45. Ba5 {[%emt 0:02:30]} Rb3 {[%emt 0:07:30]} 46. Ng6 {[%emt 0:01:30]} Nf2 {[%emt 0:01:30]} 0-1

[Event "World Junior U20 Open 2018"]
[Site "Gebze"]
[Date "2018.09.14"]
[Round "10.66"]
[White "Gulbeyaz, Emir"]
[Black "Piyumantha, M Sasith Nipun"]
[Result "1/2-1/2"]
[ECO "A01"]
[WhiteElo "2285"]
[BlackElo "2139"]
[Annotator "NA"]
[PlyCount "80"]
[EventDate "2018.09.05"]
[EventType "swiss"]
[EventCountry "TUR"]
[SourceTitle "playchess.com"]
[Source "ChessBase"]
[SourceQuality "1"]
[TimeControl "40/5400+30:1800+30"]

1. e4 c5 2. b3 g6 3. Bb2 Nf6 4. g3 Bg7 5. Bg2 d6 6. Ne2 O-O 7. O-O Nc6 8. c4 {A01: Nimzowitsch-Larsen Opening} (8. d3 Bd7 9. Nd2 Qc8 10. Nf4 Re8 11. Rb1 Bg4 12. f3 Bd7 13. Nc4 b5 14. Ne3 b4 15. Ne2 a5 {½-½ (30) Wang,C (2529)-Zhao,J (2621) Zaozhuang 2015}) 8... e5 {[%emt 0:18:00]} 9. h3 {[%emt 0:20:30]} Nh5 $146 {[%emt 0:00:30]} ({Predecessor:} 9... a6 10. Nbc3 Rb8 11. d3 b5 12. f4 exf4 13. gxf4 Nh5 14. Rb1 Nd4 15. Kh2 Qh4 {0-1 (73) Licheli,L (2056)-Juhasz,A (2314) Karpacz 2015}) 10. Kh2 {[%emt 0:00:30]} Nd4 {[%emt 0:00:30]} 11. Nxd4 {[%emt 0:00:30]} cxd4 {[%emt 0:00:30]} 12. d3 {[%emt 0:00:30]} Bh6 {[%emt 0:00:30]} 13. Nd2 {[%emt 0:00:30]} Ng7 {[%emt 0:13:30]} 14. b4 {[%emt 0:05:30]} a5 {[%emt 0:01:30]} 15. bxa5 {[%emt 0:01:30]} Qxa5 {[%emt 0:03:30]} 16. Nb3 {[%emt 0:00:00]} Qc7 {[%emt 0:00:00]} 17. Bc1 {[%emt 0:03:00]} Bxc1 {[%emt 0:00:00]} 18. Qxc1 {[%emt 0:00:30]} Ne6 {[%emt 0:01:30]} 19. f4 {[%emt 0:01:30]} f6 {[%emt 0:00:30]} 20. f5 {[%emt 0:01:30]} Nc5 {[%emt 0:00:00]} 21. Nxc5 {[%emt 0:00:30]} dxc5 {[%emt 0:00:00]} 22. h4 {[%emt 0:00:30]} Kg7 {[%emt 0:09:30]} 23. Bh3 {[%emt 0:10:30]} Bd7 {[%emt 0:00:30]} 24. g4 {[%emt 0:00:30]} gxf5 {[%emt 0:13:30]} 25. gxf5 {[%emt 0:00:30]} Kh8 {[%emt 0:02:30]} 26. Qh6 {[%emt 0:01:30]} Qd6 {[%emt 0:02:30]} 27. Rg1 {[%emt 0:00:30]} Rf7 {[%emt 0:02:30]} 28. h5 {[%emt 0:08:30]} Qf8 {[%emt 0:04:30]} 29. Qd2 {[%emt 0:00:30]} Rg7 {[%emt 0:08:30]} 30. h6 {[%emt 0:06:30]} Rxg1 {[%emt 0:00:30]} 31. Rxg1 {[%emt 0:00:00]} Re8 {[%emt 0:00:30]} 32. Rg7 {[%emt 0:07:00]} Re7 {[%emt 0:00:30]} 33. Rg3 {[%emt 0:00:30]} Re8 {[%emt 0:03:05]} 34. Bg2 {[%emt 0:11:30]} b6 $11 {[%emt 0:01:57]} 35. Bf3 {[%emt 0:00:30]} Re7 {[%emt 0:00:40]} 36. Kg1 {[%emt 0:00:30]} Bc6 {[%emt 0:01:06]} 37. Bd1 {[%emt 0:01:30]} Ra7 {[%emt 0:04:22]} 38. Qg2 {[%emt 0:03:16]} Rb7 {[%emt 0:02:05]} 39. Bh5 {[%emt 0:01:29]} Rb8 {[%emt 0:01:40]} 40. Rg7 {[%emt 0:00:00]} Rb7 {[%emt 0:00:00]} 1/2-1/2